[Event "Titled Tuesday Blitz July 6 2021"]
[White "Hebden, Mark L"]
[Black "Koridze, Lile"]
[WhiteFideId "400084"]
[BlackFideId "13612514"]
[WhiteElo "2457"]
[BlackElo "1978"]
[Result "1-0"]
[Round "11"]
[TimeControl "180+1"]
[Date "2021.07.06"]
[WhiteClock "0:00:46"]
[BlackClock "0:00:16"]

1. d4 {[%clk 0:03:00]}  Nf6 {[%clk 0:02:59]} 2. Nf3 {[%clk 0:03:01]}  d5 {[%clk 0:02:59]} 3. c4 {[%clk 0:03:00]}  e6 {[%clk 0:03:00]} 4. Bg5 {[%clk 0:02:59]}  Bb4+ {[%clk 0:02:59]} 5. Nc3 {[%clk 0:02:57]}  O-O {[%clk 0:03:00]} 6. e3 {[%clk 0:02:54]}  h6 {[%clk 0:02:59]} 7. Bxf6 {[%clk 0:02:53]}  Qxf6 {[%clk 0:02:59]} 8. Qb3 {[%clk 0:02:51]}  Bxc3+ {[%clk 0:02:59]} 9. Qxc3 {[%clk 0:02:49]}  dxc4 {[%clk 0:02:59]} 10. Bxc4 {[%clk 0:02:47]}  c5 {[%clk 0:02:58]} 11. O-O {[%clk 0:02:43]}  cxd4 {[%clk 0:02:54]} 12. Qxd4 {[%clk 0:02:40]}  Qe7 {[%clk 0:02:54]} 13. Rfd1 {[%clk 0:02:38]}  Nc6 {[%clk 0:02:54]} 14. Qd6 {[%clk 0:02:37]}  Qf6 {[%clk 0:02:54]} 15. Bb5 {[%clk 0:02:33]}  Qxb2 {[%clk 0:02:47]} 16. Bxc6 {[%clk 0:02:32]}  bxc6 {[%clk 0:02:48]} 17. Rab1 {[%clk 0:02:31]}  Qc3 {[%clk 0:02:26]} 18. Rdc1 {[%clk 0:02:18]}  Qa5 {[%clk 0:02:25]} 19. Nd4 {[%clk 0:02:01]}  Rd8 {[%clk 0:02:04]} 20. Qe7 {[%clk 0:01:56]}  Bd7 {[%clk 0:02:02]} 21. h4 {[%clk 0:01:47]}  Qxa2 {[%clk 0:01:56]} 22. Rb7 {[%clk 0:01:43]}  Qd5 {[%clk 0:01:52]} 23. Nxc6 {[%clk 0:01:39]}  Rac8 {[%clk 0:01:46]} 24. Qxd8+ {[%clk 0:01:33]}  Rxd8 {[%clk 0:01:44]} 25. Ne7+ {[%clk 0:01:33]}  Kf8 {[%clk 0:01:39]} 26. Nxd5 {[%clk 0:01:32]}  exd5 {[%clk 0:01:40]} 27. Rxa7 {[%clk 0:01:32]}  Be6 {[%clk 0:01:41]} 28. Rd1 {[%clk 0:01:31]}  Rb8 {[%clk 0:01:40]} 29. Rd4 {[%clk 0:01:29]}  Rb2 {[%clk 0:01:38]} 30. f3 {[%clk 0:01:28]}  g6 {[%clk 0:01:38]} 31. Ra5 {[%clk 0:01:24]}  Re2 {[%clk 0:01:38]} 32. Ra3 {[%clk 0:01:23]}  h5 {[%clk 0:01:37]} 33. Kf1 {[%clk 0:01:22]}  Rb2 {[%clk 0:01:37]} 34. Kg1 {[%clk 0:01:20]}  Kg7 {[%clk 0:01:36]} 35. Rd1 {[%clk 0:01:17]}  Rb4 {[%clk 0:01:35]} 36. g3 {[%clk 0:01:16]}  Rb2 {[%clk 0:01:34]} 37. Rf1 {[%clk 0:01:16]}  Bh3 {[%clk 0:01:32]} 38. Rf2 {[%clk 0:01:16]}  Rb1+ {[%clk 0:01:32]} 39. Kh2 {[%clk 0:01:16]}  Be6 {[%clk 0:01:31]} 40. Rd2 {[%clk 0:01:13]}  Rf1 {[%clk 0:01:21]} 41. Kg2 {[%clk 0:01:12]}  Rb1 {[%clk 0:01:19]} 42. Rad3 {[%clk 0:01:12]}  Re1 {[%clk 0:01:18]} 43. Kf2 {[%clk 0:01:11]}  Ra1 {[%clk 0:01:13]} 44. Rxd5 {[%clk 0:01:11]}  Bxd5 {[%clk 0:01:13]} 45. Rxd5 {[%clk 0:01:11]}  Ra2+ {[%clk 0:01:13]} 46. Kf1 {[%clk 0:01:11]}  Kf6 {[%clk 0:01:12]} 47. e4 {[%clk 0:01:10]}  Ke6 {[%clk 0:01:10]} 48. Rb5 {[%clk 0:01:09]}  Rd2 {[%clk 0:01:07]} 49. Rg5 {[%clk 0:01:03]}  Ra2 {[%clk 0:01:05]} 50. g4 {[%clk 0:01:02]}  hxg4 {[%clk 0:01:05]} 51. Rxg4 {[%clk 0:01:02]}  Ke5 {[%clk 0:00:59]} 52. Rg2 {[%clk 0:00:59]}  Ra3 {[%clk 0:00:49]} 53. Kf2 {[%clk 0:00:59]}  Kf4 {[%clk 0:00:29]} 54. Rg4+ {[%clk 0:00:59]}  Ke5 {[%clk 0:00:29]} 55. Kg3 {[%clk 0:00:59]}  Ra1 {[%clk 0:00:28]} 56. Rg5+ {[%clk 0:00:58]}  Ke6 {[%clk 0:00:27]} 57. Kf4 {[%clk 0:00:58]}  Rh1 {[%clk 0:00:27]} 58. Rg4 {[%clk 0:00:57]}  f6 {[%clk 0:00:25]} 59. Rxg6 {[%clk 0:00:55]}  Rxh4+ {[%clk 0:00:25]} 60. Ke3 {[%clk 0:00:55]}  Ke5 {[%clk 0:00:22]} 61. Rg8 {[%clk 0:00:55]}  Rh1 {[%clk 0:00:21]} 62. Re8+ {[%clk 0:00:55]}  Kd6 {[%clk 0:00:22]} 63. Kf4 {[%clk 0:00:55]}  Rf1 {[%clk 0:00:21]} 64. Kg4 {[%clk 0:00:54]}  Rf2 {[%clk 0:00:20]} 65. f4 {[%clk 0:00:54]}  Kd7 {[%clk 0:00:18]} 66. Ra8 {[%clk 0:00:52]}  Ke7 {[%clk 0:00:17]} 67. Ra7+ {[%clk 0:00:51]}  Ke6 {[%clk 0:00:17]} 68. Ra6+ {[%clk 0:00:51]}  Kf7 {[%clk 0:00:18]} 69. Kf5 {[%clk 0:00:52]}  Ke7 {[%clk 0:00:18]} 70. Re6+ {[%clk 0:00:51]}  Kd7 {[%clk 0:00:16]} 71. Rxf6 {[%clk 0:00:51]}  Ke7 {[%clk 0:00:16]} 72. Rg6 {[%clk 0:00:50]}  Kf7 {[%clk 0:00:16]} 73. Rh6 {[%clk 0:00:51]}  Kg7 {[%clk 0:00:17]} 74. Rh4 {[%clk 0:00:51]}  Kf7 {[%clk 0:00:17]} 75. e5 {[%clk 0:00:50]}  Rb2 {[%clk 0:00:17]} 76. Rh7+ {[%clk 0:00:49]}  Kg8 {[%clk 0:00:16]} 77. Rd7 {[%clk 0:00:50]}  Rb4 {[%clk 0:00:15]} 78. e6 {[%clk 0:00:48]}  Kf8 {[%clk 0:00:16]} 79. Ke5 {[%clk 0:00:47]}  Ke8 {[%clk 0:00:16]} 80. f5 {[%clk 0:00:46]}  Rb5+ {[%clk 0:00:16]} 81. Kf6 {[%clk 0:00:46]}  Rb2 {[%clk 0:00:16]} 82. Rh7 {[%clk 0:00:46]} 1-0


[Site "https://www.chess.com"]

[Event "Titled Tuesday Blitz July 6 2021"]
[White "Jakubowski, Krzysztof"]
[Black "Vovk, Orest"]
[WhiteFideId "1112848"]
[BlackFideId "14113490"]
[WhiteElo "2462"]
[BlackElo "2203"]
[Result "1-0"]
[Round "11"]
[TimeControl "180+1"]
[Date "2021.07.06"]
[WhiteClock "0:00:28"]
[BlackClock "0:00:01"]

1. e4 {[%clk 0:03:00]}  g5 {[%clk 0:02:58]} 2. h4 {[%clk 0:02:57]}  g4 {[%clk 0:02:57]} 3. d4 {[%clk 0:02:54]}  Bg7 {[%clk 0:02:56]} 4. h5 {[%clk 0:02:51]}  c5 {[%clk 0:02:50]} 5. d5 {[%clk 0:02:48]}  d6 {[%clk 0:02:41]} 6. c4 {[%clk 0:02:47]}  Be5 {[%clk 0:02:34]} 7. Bd3 {[%clk 0:02:35]}  g3 {[%clk 0:02:25]} 8. f4 {[%clk 0:02:32]}  Bd4 {[%clk 0:02:24]} 9. Nf3 {[%clk 0:02:31]}  Bf2+ {[%clk 0:02:23]} 10. Kd2 {[%clk 0:02:30]}  Qa5+ {[%clk 0:02:21]} 11. Nc3 {[%clk 0:02:28]}  Nf6 {[%clk 0:02:15]} 12. Kc2 {[%clk 0:02:25]}  Na6 {[%clk 0:02:06]} 13. a3 {[%clk 0:02:04]}  Nb4+ {[%clk 0:02:01]} 14. Kb3 {[%clk 0:02:02]}  Nxd3 {[%clk 0:01:29]} 15. Qxd3 {[%clk 0:02:01]}  b5 {[%clk 0:01:20]} 16. cxb5 {[%clk 0:01:55]}  a6 {[%clk 0:01:08]} 17. e5 {[%clk 0:01:50]}  Nd7 {[%clk 0:00:47]} 18. Ka2 {[%clk 0:01:41]}  axb5 {[%clk 0:00:44]} 19. Nxb5 {[%clk 0:01:35]}  Ba6 {[%clk 0:00:39]} 20. e6 {[%clk 0:01:25]}  fxe6 {[%clk 0:00:17]} 21. dxe6 {[%clk 0:01:21]}  Nf6 {[%clk 0:00:14]} 22. Nxd6+ {[%clk 0:01:09]}  exd6 {[%clk 0:00:14]} 23. Qxd6 {[%clk 0:01:10]}  Bc4+ {[%clk 0:00:11]} 24. b3 {[%clk 0:01:07]}  Bd5 {[%clk 0:00:09]} 25. Bb2 {[%clk 0:00:44]}  c4 {[%clk 0:00:05]} 26. Bxf6 {[%clk 0:00:39]}  cxb3+ {[%clk 0:00:05]} 27. Kb2 {[%clk 0:00:39]}  Qa7 {[%clk 0:00:02]} 28. Qd7+ {[%clk 0:00:35]}  Qxd7 {[%clk 0:00:01]} 29. exd7+ {[%clk 0:00:35]}  Kxd7 {[%clk 0:00:01]} 30. Rhd1 {[%clk 0:00:36]}  Ke6 {[%clk 0:00:01]} 31. Bxh8 {[%clk 0:00:35]}  Rxh8 {[%clk 0:00:02]} 32. Ng5+ {[%clk 0:00:36]}  Kd6 {[%clk 0:00:02]} 33. Nf7+ {[%clk 0:00:35]}  Ke6 {[%clk 0:00:01]} 34. Nxh8 {[%clk 0:00:33]}  Bxg2 {[%clk 0:00:01]} 35. Rac1 {[%clk 0:00:30]}  Be4 {[%clk 0:00:01]} 36. Kxb3 {[%clk 0:00:30]}  Bf3 {[%clk 0:00:01]} 37. Re1+ {[%clk 0:00:28]} 1-0


[Site "https://www.chess.com"]

[Event "Titled Tuesday Blitz July 6 2021"]
[White "Kalajzic, Ivan"]
[Black "Pavlidis, Anastasios"]
[WhiteFideId "14506378"]
[BlackFideId "4208404"]
[WhiteElo "2163"]
[BlackElo "2136"]
[Result "1/2-1/2"]
[Round "11"]
[TimeControl "180+1"]
[Date "2021.07.06"]
[WhiteClock "0:00:16"]
[BlackClock "0:00:38"]

1. b3 {[%clk 0:03:00]}  e5 {[%clk 0:02:58]} 2. Bb2 {[%clk 0:03:00]}  d6 {[%clk 0:02:58]} 3. e3 {[%clk 0:03:00]}  Nc6 {[%clk 0:02:57]} 4. Nf3 {[%clk 0:03:00]}  Bg4 {[%clk 0:02:53]} 5. h3 {[%clk 0:02:58]}  Bh5 {[%clk 0:02:53]} 6. Be2 {[%clk 0:02:57]}  Qd7 {[%clk 0:02:51]} 7. d4 {[%clk 0:02:57]}  exd4 {[%clk 0:02:50]} 8. Nxd4 {[%clk 0:02:57]}  Nxd4 {[%clk 0:02:49]} 9. Bxh5 {[%clk 0:02:52]}  Ne6 {[%clk 0:02:48]} 10. Bf3 {[%clk 0:02:46]}  O-O-O {[%clk 0:02:46]} 11. Nc3 {[%clk 0:02:38]}  c6 {[%clk 0:02:45]} 12. Qd2 {[%clk 0:02:35]}  d5 {[%clk 0:02:44]} 13. O-O-O {[%clk 0:02:33]}  Bb4 {[%clk 0:02:42]} 14. Bg4 {[%clk 0:02:22]}  Nf6 {[%clk 0:02:17]} 15. Bxe6 {[%clk 0:02:21]}  fxe6 {[%clk 0:02:15]} 16. Qd4 {[%clk 0:02:17]}  c5 {[%clk 0:02:12]} 17. Qh4 {[%clk 0:02:12]}  Rhf8 {[%clk 0:02:09]} 18. f3 {[%clk 0:02:09]}  Qc7 {[%clk 0:02:05]} 19. Nb5 {[%clk 0:02:03]}  Qa5 {[%clk 0:02:05]} 20. a3 {[%clk 0:01:28]}  Qxb5 {[%clk 0:02:04]} 21. axb4 {[%clk 0:01:28]}  cxb4 {[%clk 0:02:04]} 22. Bxf6 {[%clk 0:01:15]}  gxf6 {[%clk 0:02:03]} 23. Qxh7 {[%clk 0:01:15]}  Kb8 {[%clk 0:02:03]} 24. Qd3 {[%clk 0:01:13]}  Qc5 {[%clk 0:02:01]} 25. Qd4 {[%clk 0:01:12]}  Qa5 {[%clk 0:01:56]} 26. Kb1 {[%clk 0:01:06]}  e5 {[%clk 0:01:55]} 27. Qb2 {[%clk 0:01:04]}  Rc8 {[%clk 0:01:52]} 28. f4 {[%clk 0:00:59]}  Qb6 {[%clk 0:01:47]} 29. fxe5 {[%clk 0:00:55]}  fxe5 {[%clk 0:01:48]} 30. Qxe5+ {[%clk 0:00:54]}  Ka8 {[%clk 0:01:48]} 31. Qd4 {[%clk 0:00:52]}  Qc6 {[%clk 0:01:43]} 32. Rd2 {[%clk 0:00:50]}  Rfe8 {[%clk 0:01:38]} 33. Qxd5 {[%clk 0:00:41]}  Qc3 {[%clk 0:01:27]} 34. Qd4 {[%clk 0:00:38]}  Qc6 {[%clk 0:01:15]} 35. Qxb4 {[%clk 0:00:35]}  Rxe3 {[%clk 0:01:13]} 36. Rhd1 {[%clk 0:00:32]}  a6 {[%clk 0:01:11]} 37. Kb2 {[%clk 0:00:26]}  Qf6+ {[%clk 0:01:09]} 38. Qd4 {[%clk 0:00:26]}  Qh6 {[%clk 0:01:03]} 39. Rd3 {[%clk 0:00:18]}  Re2 {[%clk 0:01:02]} 40. R1d2 {[%clk 0:00:18]}  Re6 {[%clk 0:01:00]} 41. Rc3 {[%clk 0:00:17]}  Rec6 {[%clk 0:00:56]} 42. Rxc6 {[%clk 0:00:17]}  Rxc6 {[%clk 0:00:56]} 43. Qd8+ {[%clk 0:00:17]}  Ka7 {[%clk 0:00:56]} 44. Qd4+ {[%clk 0:00:18]}  Ka8 {[%clk 0:00:40]} 45. Qd8+ {[%clk 0:00:17]}  Ka7 {[%clk 0:00:40]} 46. Qd4+ {[%clk 0:00:16]}  Ka8 {[%clk 0:00:38]} 1/2-1/2


[Site "https://www.chess.com"]

[Event "Titled Tuesday Blitz July 6 2021"]
[White "Keymer, Vincent"]
[Black "Abdurakhmonov, Mukhammadali"]
[WhiteFideId "12940690"]
[BlackFideId "14207346"]
[WhiteElo "2474"]
[BlackElo "2266"]
[Result "1-0"]
[Round "11"]
[TimeControl "180+1"]
[Date "2021.07.06"]
[WhiteClock "0:00:06"]
[BlackClock "0:00:04"]

1. Nf3 {[%clk 0:03:00]}  Nf6 {[%clk 0:03:00]} 2. c4 {[%clk 0:03:01]}  g6 {[%clk 0:03:00]} 3. Nc3 {[%clk 0:03:02]}  Bg7 {[%clk 0:02:58]} 4. g3 {[%clk 0:03:03]}  O-O {[%clk 0:02:58]} 5. Bg2 {[%clk 0:03:03]}  d6 {[%clk 0:02:58]} 6. O-O {[%clk 0:03:04]}  Nc6 {[%clk 0:02:59]} 7. d4 {[%clk 0:03:05]}  Bg4 {[%clk 0:02:59]} 8. h3 {[%clk 0:03:01]}  Bxf3 {[%clk 0:02:59]} 9. Bxf3 {[%clk 0:03:02]}  Nd7 {[%clk 0:02:59]} 10. e3 {[%clk 0:02:58]}  e5 {[%clk 0:02:59]} 11. d5 {[%clk 0:02:59]}  Ne7 {[%clk 0:03:00]} 12. e4 {[%clk 0:02:59]}  f5 {[%clk 0:03:00]} 13. h4 {[%clk 0:02:58]}  Nf6 {[%clk 0:02:57]} 14. h5 {[%clk 0:02:56]}  Qd7 {[%clk 0:02:44]} 15. Bg5 {[%clk 0:02:47]}  f4 {[%clk 0:02:35]} 16. Kg2 {[%clk 0:02:36]}  Nxh5 {[%clk 0:02:31]} 17. Bxh5 {[%clk 0:02:29]}  gxh5 {[%clk 0:02:32]} 18. Qxh5 {[%clk 0:02:25]}  f3+ {[%clk 0:02:11]} 19. Kh2 {[%clk 0:02:23]}  Ng6 {[%clk 0:02:06]} 20. Rh1 {[%clk 0:02:20]}  Bf6 {[%clk 0:02:00]} 21. Be3 {[%clk 0:02:14]}  Rf7 {[%clk 0:01:43]} 22. Nb1 {[%clk 0:01:48]}  Raf8 {[%clk 0:01:35]} 23. Nd2 {[%clk 0:01:48]}  Bd8 {[%clk 0:01:28]} 24. Bh6 {[%clk 0:01:47]}  Re8 {[%clk 0:01:03]} 25. Nxf3 {[%clk 0:01:45]}  c6 {[%clk 0:01:04]} 26. Kg2 {[%clk 0:01:39]}  cxd5 {[%clk 0:01:03]} 27. cxd5 {[%clk 0:01:40]}  Qb5 {[%clk 0:01:01]} 28. Rac1 {[%clk 0:01:20]}  Bb6 {[%clk 0:00:51]} 29. Rhf1 {[%clk 0:00:59]}  Qxb2 {[%clk 0:00:44]} 30. Qg4 {[%clk 0:00:54]}  Qe2 {[%clk 0:00:20]} 31. Rc3 {[%clk 0:00:22]}  Kh8 {[%clk 0:00:14]} 32. Rc8 {[%clk 0:00:13]}  Bd8 {[%clk 0:00:04]} 33. Nxe5 {[%clk 0:00:09]}  Qxg4 {[%clk 0:00:02]} 34. Nxg4 {[%clk 0:00:10]}  Kg8 {[%clk 0:00:02]} 35. Bg5 {[%clk 0:00:09]}  Rd7 {[%clk 0:00:02]} 36. Nf6+ {[%clk 0:00:05]}  Bxf6 {[%clk 0:00:02]} 37. Rxe8+ {[%clk 0:00:05]}  Kf7 {[%clk 0:00:03]} 38. Bxf6 {[%clk 0:00:06]}  Kxe8 {[%clk 0:00:04]} 39. f4 {[%clk 0:00:06]}  Rc7 {[%clk 0:00:04]} 40. Kf3 {[%clk 0:00:07]}  Rc2 {[%clk 0:00:04]} 41. Rf2 {[%clk 0:00:07]}  Rc1 {[%clk 0:00:03]} 42. g4 {[%clk 0:00:05]}  Kf7 {[%clk 0:00:03]} 43. Bd4 {[%clk 0:00:05]}  Rd1 {[%clk 0:00:03]} 44. Bxa7 {[%clk 0:00:06]}  Rd3+ {[%clk 0:00:03]} 45. Be3 {[%clk 0:00:06]}  Nh4+ {[%clk 0:00:03]} 46. Ke2 {[%clk 0:00:06]}  Ra3 {[%clk 0:00:03]} 47. Rh2 {[%clk 0:00:06]}  Rxa2+ {[%clk 0:00:03]} 48. Bd2 {[%clk 0:00:05]}  Rxd2+ {[%clk 0:00:04]} 49. Kxd2 {[%clk 0:00:06]}  Nf3+ {[%clk 0:00:05]} 50. Ke3 {[%clk 0:00:07]}  Nxh2 {[%clk 0:00:05]} 51. g5 {[%clk 0:00:08]}  h5 {[%clk 0:00:04]} 52. gxh6 {[%clk 0:00:07]}  Ng4+ {[%clk 0:00:05]} 53. Kd4 {[%clk 0:00:08]}  Nxh6 {[%clk 0:00:06]} 54. e5 {[%clk 0:00:08]}  Ke7 {[%clk 0:00:06]} 55. Kc4 {[%clk 0:00:07]}  Kd7 {[%clk 0:00:04]} 56. Kb5 {[%clk 0:00:07]}  Nf7 {[%clk 0:00:04]} 57. e6+ {[%clk 0:00:06]} 1-0


[Site "https://www.chess.com"]

[Event "Titled Tuesday Blitz July 6 2021"]
[White "Khalafova, Narmin"]
[Black "Sieciechowicz, Marcin"]
[WhiteFideId "13402625"]
[BlackFideId "1130170"]
[WhiteElo "2109"]
[BlackElo "2302"]
[Result "1-0"]
[Round "11"]
[TimeControl "180+1"]
[Date "2021.07.06"]
[WhiteClock "0:00:09"]
[BlackClock "0:00:04"]

1. e4 {[%clk 0:03:00]}  c5 {[%clk 0:02:58]} 2. Be2 {[%clk 0:02:59]}  d6 {[%clk 0:02:59]} 3. f4 {[%clk 0:03:00]}  g6 {[%clk 0:02:58]} 4. Nf3 {[%clk 0:02:59]}  Bg7 {[%clk 0:02:59]} 5. O-O {[%clk 0:02:59]}  Nc6 {[%clk 0:02:59]} 6. c3 {[%clk 0:02:56]}  Bg4 {[%clk 0:02:59]} 7. Na3 {[%clk 0:02:52]}  e6 {[%clk 0:02:58]} 8. Nc2 {[%clk 0:02:43]}  Nge7 {[%clk 0:02:57]} 9. Ne3 {[%clk 0:02:43]}  Bxf3 {[%clk 0:02:56]} 10. Rxf3 {[%clk 0:02:42]}  Qd7 {[%clk 0:02:56]} 11. f5 {[%clk 0:02:39]}  exf5 {[%clk 0:02:45]} 12. exf5 {[%clk 0:02:38]}  Ne5 {[%clk 0:02:45]} 13. Rf1 {[%clk 0:02:35]}  Nxf5 {[%clk 0:02:42]} 14. Nxf5 {[%clk 0:02:32]}  gxf5 {[%clk 0:02:43]} 15. d4 {[%clk 0:02:26]}  cxd4 {[%clk 0:02:42]} 16. cxd4 {[%clk 0:02:26]}  Nc6 {[%clk 0:02:42]} 17. Be3 {[%clk 0:02:13]}  O-O {[%clk 0:02:37]} 18. Bd3 {[%clk 0:01:57]}  Qe6 {[%clk 0:02:00]} 19. Qd2 {[%clk 0:01:27]}  Qxe3+ {[%clk 0:01:57]} 20. Qxe3 {[%clk 0:01:24]}  Bxd4 {[%clk 0:01:56]} 21. Qxd4 {[%clk 0:01:21]}  Nxd4 {[%clk 0:01:57]} 22. Rf4 {[%clk 0:01:20]}  Ne6 {[%clk 0:01:57]} 23. Rxf5 {[%clk 0:01:20]}  Kg7 {[%clk 0:01:54]} 24. Raf1 {[%clk 0:01:13]}  f6 {[%clk 0:01:33]} 25. Rd5 {[%clk 0:01:06]}  Nc5 {[%clk 0:01:17]} 26. Rxd6 {[%clk 0:00:47]}  Rad8 {[%clk 0:01:16]} 27. Rxd8 {[%clk 0:00:47]}  Rxd8 {[%clk 0:01:17]} 28. Bc4 {[%clk 0:00:45]}  Rd2 {[%clk 0:01:16]} 29. Rf2 {[%clk 0:00:44]}  Rd4 {[%clk 0:01:10]} 30. Rc2 {[%clk 0:00:30]}  Ne4 {[%clk 0:01:03]} 31. g3 {[%clk 0:00:30]}  f5 {[%clk 0:00:51]} 32. Kg2 {[%clk 0:00:27]}  Kf6 {[%clk 0:00:51]} 33. Bg8 {[%clk 0:00:22]}  h6 {[%clk 0:00:49]} 34. Kf3 {[%clk 0:00:21]}  Ke5 {[%clk 0:00:49]} 35. Ke3 {[%clk 0:00:20]}  Rd8 {[%clk 0:00:43]} 36. Bb3 {[%clk 0:00:17]}  Rd7 {[%clk 0:00:39]} 37. Rc8 {[%clk 0:00:16]}  b6 {[%clk 0:00:27]} 38. Re8+ {[%clk 0:00:16]}  Kf6 {[%clk 0:00:25]} 39. Re6+ {[%clk 0:00:16]}  Kg7 {[%clk 0:00:22]} 40. Re5 {[%clk 0:00:15]}  Nc5 {[%clk 0:00:04]} 41. Bc2 {[%clk 0:00:09]} 1-0


[Site "https://www.chess.com"]

[Event "Titled Tuesday Blitz July 6 2021"]
[White "Kobo, Ori"]
[Black "Moroni, Luca Jr"]
[WhiteFideId "2812320"]
[BlackFideId "865834"]
[WhiteElo "2431"]
[BlackElo "2491"]
[Result "1-0"]
[Round "11"]
[TimeControl "180+1"]
[Date "2021.07.06"]
[WhiteClock "0:00:23"]
[BlackClock "0:00:43"]

1. Nf3 {[%clk 0:03:00]}  g6 {[%clk 0:02:59]} 2. e4 {[%clk 0:03:00]}  Bg7 {[%clk 0:03:00]} 3. d4 {[%clk 0:03:01]}  d6 {[%clk 0:03:01]} 4. Nc3 {[%clk 0:03:01]}  Nf6 {[%clk 0:03:01]} 5. Be3 {[%clk 0:03:01]}  O-O {[%clk 0:03:00]} 6. Qd2 {[%clk 0:03:01]}  d5 {[%clk 0:03:00]} 7. e5 {[%clk 0:03:01]}  Ne4 {[%clk 0:03:00]} 8. Nxe4 {[%clk 0:03:02]}  dxe4 {[%clk 0:03:01]} 9. Ng5 {[%clk 0:03:02]}  c5 {[%clk 0:03:01]} 10. c3 {[%clk 0:03:01]}  Nc6 {[%clk 0:03:02]} 11. Nxe4 {[%clk 0:03:00]}  cxd4 {[%clk 0:03:02]} 12. cxd4 {[%clk 0:03:00]}  Bf5 {[%clk 0:03:03]} 13. Ng3 {[%clk 0:02:57]}  Be6 {[%clk 0:03:01]} 14. Be2 {[%clk 0:02:56]}  f6 {[%clk 0:03:01]} 15. exf6 {[%clk 0:02:53]}  Bxf6 {[%clk 0:03:02]} 16. O-O {[%clk 0:02:53]}  Nxd4 {[%clk 0:02:59]} 17. Rfd1 {[%clk 0:02:48]}  Nxe2+ {[%clk 0:02:57]} 18. Qxe2 {[%clk 0:02:49]}  Bd5 {[%clk 0:02:09]} 19. Bh6 {[%clk 0:02:20]}  Rf7 {[%clk 0:02:02]} 20. Ne4 {[%clk 0:02:05]}  Bh8 {[%clk 0:01:57]} 21. Ng5 {[%clk 0:01:51]}  Rf5 {[%clk 0:01:53]} 22. Rxd5 {[%clk 0:01:26]}  Qxd5 {[%clk 0:01:49]} 23. Qxe7 {[%clk 0:01:26]}  Rxg5 {[%clk 0:01:42]} 24. Bxg5 {[%clk 0:01:18]}  Bxb2 {[%clk 0:01:41]} 25. Re1 {[%clk 0:01:14]}  Bc3 {[%clk 0:01:40]} 26. Rc1 {[%clk 0:01:09]}  Bb2 {[%clk 0:01:27]} 27. Re1 {[%clk 0:01:05]}  Bg7 {[%clk 0:01:22]} 28. h4 {[%clk 0:00:54]}  Rf8 {[%clk 0:01:19]} 29. Re2 {[%clk 0:00:35]}  h6 {[%clk 0:01:11]} 30. Rd2 {[%clk 0:00:29]}  Qf7 {[%clk 0:00:47]} 31. Qxf7+ {[%clk 0:00:27]}  Rxf7 {[%clk 0:00:48]} 32. Be3 {[%clk 0:00:27]}  a6 {[%clk 0:00:49]} 33. Rd6 {[%clk 0:00:26]}  Kh7 {[%clk 0:00:47]} 34. Rb6 {[%clk 0:00:25]}  h5 {[%clk 0:00:47]} 35. g3 {[%clk 0:00:24]}  Rd7 {[%clk 0:00:43]} 36. Kg2 {[%clk 0:00:24]}  Bf6 {[%clk 0:00:43]} 37. Rxf6 {[%clk 0:00:23]}  b5 {[%clk 0:00:43]} 38. Rxa6 {[%clk 0:00:23]} 1-0


[Site "https://www.chess.com"]

[Event "Titled Tuesday Blitz July 6 2021"]
[White "Kotsur, Pavel"]
[Black "Mons, Leon"]
[WhiteFideId "13700278"]
[BlackFideId "4614950"]
[WhiteElo "2521"]
[BlackElo "2492"]
[Result "1-0"]
[Round "11"]
[TimeControl "180+1"]
[Date "2021.07.06"]
[WhiteClock "0:00:06"]
[BlackClock "0:00:12"]

1. e4 {[%clk 0:03:00]}  e5 {[%clk 0:02:59]} 2. Nf3 {[%clk 0:03:00]}  Nc6 {[%clk 0:02:59]} 3. Bb5 {[%clk 0:03:00]}  a6 {[%clk 0:02:59]} 4. Ba4 {[%clk 0:03:00]}  Nf6 {[%clk 0:02:59]} 5. O-O {[%clk 0:03:01]}  Be7 {[%clk 0:03:00]} 6. Re1 {[%clk 0:02:59]}  b5 {[%clk 0:03:00]} 7. Bb3 {[%clk 0:02:59]}  O-O {[%clk 0:03:01]} 8. c3 {[%clk 0:02:57]}  d5 {[%clk 0:03:01]} 9. exd5 {[%clk 0:02:57]}  Nxd5 {[%clk 0:03:01]} 10. Nxe5 {[%clk 0:02:58]}  Nxe5 {[%clk 0:03:02]} 11. Rxe5 {[%clk 0:02:58]}  c6 {[%clk 0:03:03]} 12. d3 {[%clk 0:02:56]}  Bd6 {[%clk 0:03:03]} 13. Re1 {[%clk 0:02:56]}  Bf5 {[%clk 0:03:02]} 14. Nd2 {[%clk 0:02:54]}  Nf4 {[%clk 0:02:50]} 15. Ne4 {[%clk 0:02:45]}  Nxd3 {[%clk 0:02:50]} 16. Nxd6 {[%clk 0:02:44]}  Qxd6 {[%clk 0:02:49]} 17. Re2 {[%clk 0:02:13]}  Rfe8 {[%clk 0:02:29]} 18. Be3 {[%clk 0:02:09]}  Rad8 {[%clk 0:02:23]} 19. Bg5 {[%clk 0:01:58]}  Rc8 {[%clk 0:01:41]} 20. Bh4 {[%clk 0:01:13]}  c5 {[%clk 0:01:22]} 21. Bg3 {[%clk 0:01:12]}  Qg6 {[%clk 0:01:22]} 22. c4 {[%clk 0:00:50]}  Bg4 {[%clk 0:01:11]} 23. f3 {[%clk 0:00:45]}  Bf5 {[%clk 0:01:03]} 24. Qd2 {[%clk 0:00:38]}  Qf6 {[%clk 0:00:56]} 25. Bf2 {[%clk 0:00:22]}  h6 {[%clk 0:00:36]} 26. Rd1 {[%clk 0:00:16]}  Rxe2 {[%clk 0:00:32]} 27. Qxe2 {[%clk 0:00:16]}  Nxb2 {[%clk 0:00:30]} 28. Rc1 {[%clk 0:00:10]}  Nd3 {[%clk 0:00:27]} 29. Rd1 {[%clk 0:00:09]}  Nxf2 {[%clk 0:00:26]} 30. Qxf2 {[%clk 0:00:09]}  b4 {[%clk 0:00:26]} 31. g4 {[%clk 0:00:07]}  Bg6 {[%clk 0:00:25]} 32. Rd5 {[%clk 0:00:05]}  Qe7 {[%clk 0:00:21]} 33. Kg2 {[%clk 0:00:05]}  f6 {[%clk 0:00:21]} 34. Ba4 {[%clk 0:00:05]}  Be8 {[%clk 0:00:19]} 35. Bxe8 {[%clk 0:00:04]}  Rxe8 {[%clk 0:00:16]} 36. Rxc5 {[%clk 0:00:04]}  Qe6 {[%clk 0:00:16]} 37. Rc7 {[%clk 0:00:04]}  a5 {[%clk 0:00:15]} 38. Qa7 {[%clk 0:00:03]}  Qe2+ {[%clk 0:00:15]} 39. Kg3 {[%clk 0:00:03]}  Qe5+ {[%clk 0:00:15]} 40. Kg2 {[%clk 0:00:03]}  f5 {[%clk 0:00:13]} 41. Qc5 {[%clk 0:00:02]}  fxg4 {[%clk 0:00:12]} 42. Qxe5 {[%clk 0:00:02]}  gxf3+ {[%clk 0:00:12]} 43. Kxf3 {[%clk 0:00:02]}  Rxe5 {[%clk 0:00:13]} 44. c5 {[%clk 0:00:03]}  Rh5 {[%clk 0:00:10]} 45. Kg3 {[%clk 0:00:02]}  Rd5 {[%clk 0:00:10]} 46. c6 {[%clk 0:00:02]}  Rc5 {[%clk 0:00:10]} 47. Rc8+ {[%clk 0:00:02]}  Kf7 {[%clk 0:00:10]} 48. c7 {[%clk 0:00:03]}  Rc3+ {[%clk 0:00:10]} 49. Kf4 {[%clk 0:00:03]}  Kg6 {[%clk 0:00:10]} 50. h4 {[%clk 0:00:03]}  Kh5 {[%clk 0:00:09]} 51. Kf5 {[%clk 0:00:01]}  g6+ {[%clk 0:00:09]} 52. Ke6 {[%clk 0:00:02]}  a4 {[%clk 0:00:09]} 53. Kd6 {[%clk 0:00:02]}  b3 {[%clk 0:00:09]} 54. axb3 {[%clk 0:00:02]}  axb3 {[%clk 0:00:10]} 55. Rb8 {[%clk 0:00:02]}  Kxh4 {[%clk 0:00:10]} 56. Rxb3 {[%clk 0:00:03]}  Rxc7 {[%clk 0:00:09]} 57. Kxc7 {[%clk 0:00:03]}  g5 {[%clk 0:00:09]} 58. Kd6 {[%clk 0:00:03]}  g4 {[%clk 0:00:10]} 59. Ke5 {[%clk 0:00:03]}  Kg5 {[%clk 0:00:09]} 60. Ke4 {[%clk 0:00:03]}  h5 {[%clk 0:00:10]} 61. Ke3 {[%clk 0:00:03]}  h4 {[%clk 0:00:10]} 62. Kf2 {[%clk 0:00:04]}  Kf5 {[%clk 0:00:11]} 63. Kg2 {[%clk 0:00:04]}  Kg5 {[%clk 0:00:11]} 64. Rb4 {[%clk 0:00:05]}  Kf5 {[%clk 0:00:12]} 65. Ra4 {[%clk 0:00:05]}  Kg5 {[%clk 0:00:13]} 66. Ra5+ {[%clk 0:00:06]}  Kf4 {[%clk 0:00:13]} 67. Rb5 {[%clk 0:00:06]}  h3+ {[%clk 0:00:11]} 68. Kh2 {[%clk 0:00:05]}  Kf3 {[%clk 0:00:12]} 69. Rb3+ {[%clk 0:00:05]}  Kf4 {[%clk 0:00:13]} 70. Rb4+ {[%clk 0:00:05]}  Kf3 {[%clk 0:00:14]} 71. Rb8 {[%clk 0:00:05]}  Kf4 {[%clk 0:00:15]} 72. Rf8+ {[%clk 0:00:06]}  Ke4 {[%clk 0:00:12]} 73. Kg3 {[%clk 0:00:06]} 1-0


[Site "https://www.chess.com"]